fUST/lending_fUST_20250812
["ID","MTS","AMOUNT","RATE_DAILY","PERIOD"]
[378737712,1754997033654,-639.9,0.00018117,2]
[378737713,1754997033665,-923.38,0.00018117,2]
[378737714,1754997033675,-460.0,0.00018117,2]
[378737715,1754997033685,-460.0,0.00018117,2]
[378737716,1754997033695,-460.0,0.00018117,2]
[378737717,1754997033706,-460.0,0.00018117,2]
[378737718,1754997033715,-460.0,0.00018118,2]
[378737719,1754997033725,-460.0,0.00018118,2]
[378737720,1754997033736,-460.0,0.00018118,2]
[378737721,1754997033746,-460.0,0.00018118,2]
[378737722,1754997033756,-460.0,0.00018118,2]
[378737723,1754997033766,-460.0,0.00018118,2]
[378737724,1754997033777,-462.79052649,0.00018118,2]
[378737725,1754997033787,-460.0,0.00018118,2]
[378737726,1754997033797,-460.0,0.00018118,2]
[378737727,1754997033806,-583.79,0.00018118,2]
[378737728,1754997033816,-472.03,0.00018118,2]
[378737729,1754997033827,-460.0,0.00018118,2]
[378737730,1754997033836,-460.0,0.00018118,2]
[378737731,1754997033849,-460.0,0.00018118,2]
[378737732,1754997033859,-460.0,0.00018118,2]
[378737733,1754997033869,-460.0,0.00018118,2]
[378737734,1754997033879,-460.0,0.00018118,2]
[378737735,1754997033889,-460.0,0.00018118,2]
[378737736,1754997033899,-460.0,0.00018118,2]
[378737737,1754997033909,-203.51101205,0.00018118,2]
[378737738,1754997033919,-460.0,0.00018118,2]
[378737739,1754997033928,-460.0,0.00018118,2]
[378737740,1754997033938,-460.0,0.00018118,2]
[378737741,1754997033948,-460.0,0.00018118,2]
[378737742,1754997033958,-460.0,0.00018118,2]
[378737743,1754997033967,-460.0,0.00018118,2]
[378737744,1754997033977,-606.38,0.00018118,2]
[378737745,1754997033986,-504.95,0.00018118,2]
[378737746,1754997033995,-460.0,0.00018118,2]
[378737747,1754997034005,-242.37,0.00018118,2]
[378737748,1754997034015,-460.0,0.00018118,2]
[378737749,1754997034024,-403.76008107,0.00018118,2]
[378737750,1754997034034,-460.0,0.00018118,2]
[378737751,1754997034043,-460.0,0.00018118,2]
[378737752,1754997034052,-511.45059259,0.00018118,2]
[378737753,1754997034062,-460.0,0.00018118,2]
[378737754,1754997034071,-460.0,0.00018118,2]
[378737755,1754997034081,-460.0,0.00018118,2]
[378737756,1754997034090,-460.0,0.00018118,2]
[378737757,1754997034101,-490.1,0.00018118,2]
[378737758,1754997034110,-460.0,0.00018118,2]
[378737759,1754997034120,-460.0,0.00018118,2]
[378737760,1754997034129,-460.0,0.00018118,2]
[378737761,1754997034139,-610.05,0.00018118,2]
[378737762,1754997034148,-460.99574746,0.00018118,2]
[378737763,1754997034158,-277.78336998,0.00018118,2]
[378737764,1754997034168,-460.0,0.00018118,2]
[378737765,1754997034178,-460.0,0.00018118,2]
[378737766,1754997034187,-460.0,0.00018118,2]
[378737767,1754997034196,-462.00738125,0.00018118,2]
[378737768,1754997034206,-807.82,0.00018118,2]
[378737769,1754997034215,-582.78553001,0.00018118,2]
[378737770,1754997034224,-460.0,0.00018118,2]
[378737771,1754997034233,-460.0,0.00018118,2]
[378737772,1754997034243,-465.2283803,0.00018118,2]
[378737773,1754997034252,-460.0,0.00018118,2]
[378737774,1754997034261,-241.63986341,0.00018118,2]
[378737775,1754997034271,-460.0,0.00018118,2]
[378737776,1754997034280,-460.0,0.00018118,2]
[378737777,1754997034289,-460.0,0.00018118,2]
[378737778,1754997034298,-460.0,0.00018118,2]
[378737779,1754997034307,-460.0,0.00018118,2]
[378737780,1754997034318,-460.0,0.00018118,2]
[378737781,1754997034330,-460.0,0.00018118,2]
[378737782,1754997034340,-460.0,0.00018118,2]
[378737783,1754997034351,-462.23358971,0.00018118,2]
[378737784,1754997034361,-469.0,0.00018118,2]
[378737785,1754997034373,-461.72326758,0.00018118,2]
[378737786,1754997034384,-510.89,0.00018118,2]
[378737787,1754997034394,-853.56,0.00018118,2]
[378737788,1754997034405,-460.7169586,0.00018118,2]
[378737789,1754997034415,-460.0,0.00018118,2]
[378737790,1754997034425,-460.0,0.00018118,2]
[378737791,1754997034435,-460.0,0.00018118,2]
[378737792,1754997034444,-460.0,0.00018118,2]
[378737793,1754997034454,-460.0,0.00018118,2]
[378737794,1754997034463,-460.0,0.00018118,2]
[378737795,1754997034473,-460.0,0.00018118,2]
[378737796,1754997034483,-460.0,0.00018118,2]
[378737797,1754997034492,-266.15431464,0.00018118,2]
[378737798,1754997034503,-460.0,0.00018118,2]
[378737799,1754997034513,-460.0,0.00018118,2]
[378737800,1754997034523,-460.0,0.00018118,2]
[378737801,1754997034532,-460.0,0.00018118,2]
[378737802,1754997034542,-168.6200183,0.00018118,2]
[378737803,1754997034551,-462.02992346,0.00018118,2]
[378737804,1754997034560,-614.51,0.00018118,2]
[378737805,1754997034570,-460.0,0.00018118,2]
[378737806,1754997034580,-460.0,0.00018118,2]
[378737807,1754997034589,-461.86932462,0.00018118,2]
[378737808,1754997034600,-460.0,0.00018118,2]
[378737809,1754997034610,-460.0,0.00018118,2]
[378737810,1754997034620,-460.0,0.00018118,2]
[378737811,1754997034635,-460.0,0.00018118,2]
[378737812,1754997034645,-599.66,0.00018118,2]
[378737813,1754997034655,-460.0,0.00018118,2]
[378737814,1754997034666,-460.0,0.00018118,2]
[378737815,1754997034676,-460.0,0.00018118,2]
[378737816,1754997034685,-460.0,0.00018118,2]
[378737817,1754997034695,-460.0,0.00018118,2]
[378737818,1754997034704,-460.0,0.00018118,2]
[378737819,1754997034714,-462.29136156,0.00018118,2]
[378737820,1754997034723,-460.0,0.00018118,2]
[378737821,1754997034733,-461.02632671,0.00018118,2]
[378737822,1754997034746,-461.68726973,0.00018118,2]
[378737823,1754997034756,-460.0,0.00018118,2]
[378737824,1754997034766,-460.0,0.00018118,2]
[378737825,1754997034776,-1090.97,0.00018118,2]
[378737826,1754997034786,-460.0,0.00018118,2]
[378737827,1754997034795,-460.0,0.00018118,2]
[378737828,1754997034805,-465.47182676,0.00018118,2]
[378737829,1754997034814,-462.24951918,0.00018118,2]
[378737830,1754997034824,-460.0,0.00018118,2]
[378737831,1754997034833,-460.0,0.00018118,2]
[378737832,1754997034845,-460.0,0.00018118,2]
[378737833,1754997034855,-314.13459046,0.00018118,2]
[378737834,1754997034865,-460.0,0.00018118,2]
[378737835,1754997034874,-7814.47,0.00018118,2]
[378737836,1754997034884,-609.24,0.00018118,2]
[378737837,1754997034893,-460.0,0.00018118,2]
[378737838,1754997034903,-460.0,0.00018118,2]
[378737839,1754997034912,-460.0,0.00018118,2]
[378737840,1754997034922,-468.19453096,0.00018118,2]
[378737841,1754997034932,-460.0,0.00018118,2]
[378737842,1754997034941,-2081.03,0.00018118,2]
[378737843,1754997034950,-475.44585329,0.00018118,2]
[378737844,1754997034960,-460.0,0.00018118,2]
[378737845,1754997034969,-460.0,0.00018118,2]
[378737846,1754997034978,-472.58164815,0.00018118,2]
[378737847,1754997034988,-786.2,0.00018118,2]
[378737848,1754997034997,-460.0,0.00018118,2]
[378737849,1754997035007,-2121.94,0.00018118,2]
[378737850,1754997035016,-460.0,0.00018118,2]
[378737851,1754997035025,-683.65,0.00018118,2]
[378737852,1754997035035,-460.0,0.00018118,2]
[378737853,1754997035044,-500.0,0.00018118,2]
[378737854,1754997035053,-2050.44,0.00018118,2]
[378737855,1754997035063,-460.0,0.00018118,2]
[378737856,1754997035072,-460.0,0.00018118,2]
[378737857,1754997035081,-460.53692922,0.00018118,2]
[378737858,1754997035091,-461.489885,0.00018118,2]
[378737859,1754997035102,-460.0,0.00018118,2]
[378737860,1754997035111,-917.42,0.00018118,2]
[378737861,1754997035121,-460.0,0.00018118,2]
[378737862,1754997035130,-460.0,0.00018118,2]
[378737863,1754997035139,-460.0,0.00018118,2]
[378737864,1754997035148,-1313.8,0.00018118,2]
[378737865,1754997035157,-460.0,0.00018118,2]
[378737866,1754997035166,-460.0,0.00018118,2]
[378737867,1754997035175,-1201.16,0.00018118,2]
[378737868,1754997035185,-461.04858743,0.00018118,2]
[378737869,1754997035195,-1777.05,0.00018118,2]
[378737870,1754997035204,-500.0,0.00018118,2]
[378737871,1754997035213,-460.0,0.00018118,2]
[378737872,1754997035223,-1195.64,0.00018118,2]
[378737873,1754997035232,-460.0,0.00018118,2]
[378737874,1754997035241,-462.05535552,0.00018118,2]
[378737875,1754997035250,-460.0,0.00018118,2]
[378737876,1754997035264,-460.0,0.00018118,2]
[378737877,1754997035276,-464.6650665,0.00018118,2]
[378737878,1754997035287,-735.68,0.00018118,2]
[378737879,1754997035300,-1018.84,0.00018118,2]
[378737880,1754997035312,-460.0,0.00018118,2]
[378737881,1754997035322,-460.0,0.00018118,2]
[378737882,1754997035336,-460.0,0.00018118,2]
[378737883,1754997035349,-460.0,0.00018118,2]
[378737884,1754997035362,-460.0,0.00018118,2]
[378737885,1754997035374,-500.0,0.00018119,2]
[378737886,1754997035386,-462.48354589,0.0001812,2]
[378737887,1754997035399,-1630.68,0.0001812,2]
[378737888,1754997035412,-460.0,0.0001812,2]
[378737889,1754997035424,-2042.81,0.0001812,2]
[378737890,1754997035436,-460.0,0.0001812,2]
[378737891,1754997035447,-500.0,0.0001812,2]
[378737892,1754997035460,-500.0,0.0001812,2]
[378737893,1754997035472,-460.0,0.00018121,2]
[378737894,1754997035483,-704.81,0.00018121,2]
[378737895,1754997035495,-500.0,0.00018121,2]
[378737896,1754997035507,-500.0,0.00018122,2]
[378737897,1754997035518,-500.0,0.00018122,2]
[378737898,1754997035529,-500.0,0.00018122,2]
[378737899,1754997035541,-524.07916061,0.00018122,2]
[378737900,1754997035553,-460.0,0.00018123,2]
[378737901,1754997035565,-460.0,0.00018123,2]
[378737902,1754997035576,-460.0,0.00018123,2]
[378737903,1754997035589,-460.0,0.00018123,2]
[378737904,1754997035601,-586.5,0.00018123,2]
[378737905,1754997035611,-460.0,0.00018123,2]
[378737906,1754997035621,-500.0,0.00018123,2]
[378737907,1754997035632,-460.0,0.00018123,2]
[378737908,1754997035643,-460.0,0.00018123,2]
[378737909,1754997035653,-460.0,0.00018123,2]
[378737910,1754997035665,-468.27380012,0.00018123,2]
[378737911,1754997035677,-460.0,0.00018123,2]
[378737912,1754997035688,-577.31,0.00018123,2]
[378737913,1754997035702,-902.85,0.00018123,2]
[378737914,1754997035713,-460.0,0.00018123,2]
[378737915,1754997035725,-460.0,0.00018123,2]
[378737916,1754997035737,-464.10346704,0.00018123,2]
[378737917,1754997035749,-460.0,0.00018123,2]
[378737918,1754997035761,-460.0,0.00018123,2]
[378737919,1754997035774,-460.0,0.00018123,2]
[378737920,1754997035787,-460.0,0.00018123,2]
[378737921,1754997035797,-460.0,0.00018123,2]
[378737922,1754997035807,-460.0,0.00018123,2]
[378737923,1754997035817,-460.0,0.00018123,2]
[378737924,1754997035827,-460.0,0.00018123,2]
[378737925,1754997035837,-460.0,0.00018123,2]
[378737926,1754997035849,-460.0,0.00018123,2]
[378737927,1754997035861,-460.0,0.00018123,2]
[378737928,1754997035873,-460.0,0.00018123,2]
[378737929,1754997035885,-1212.71,0.00018123,2]
[378737930,1754997035897,-460.0,0.00018123,2]
[378737931,1754997035906,-460.0,0.00018123,2]
[378737932,1754997035916,-163.24289654,0.00018123,2]
[378737933,1754997035927,-460.0,0.00018123,2]
[378737934,1754997035938,-460.0,0.00018123,2]
[378737935,1754997035949,-465.49062905,0.00018123,2]
[378737936,1754997035961,-460.0,0.00018123,2]
[378737937,1754997035973,-460.0,0.00018123,2]
[378737938,1754997035984,-460.0,0.00018123,2]
[378737939,1754997035996,-460.0,0.00018123,2]
[378737940,1754997036007,-500.0,0.00018123,2]
[378737941,1754997036017,-500.0,0.00018123,2]
[378737942,1754997036027,-460.0,0.00018124,2]
[378737943,1754997036038,-460.0,0.00018124,2]
[378737944,1754997036048,-460.0,0.00018124,2]
[378737945,1754997036059,-460.0,0.00018124,2]
[378737946,1754997036070,-460.0,0.00018124,2]
[378737947,1754997036081,-460.0,0.00018124,2]
[378737948,1754997036091,-460.0,0.00018124,2]
[378737949,1754997036103,-460.0,0.00018124,2]
[378737950,1754997036114,-596.59644255,0.00018124,2]
[378737951,1754997036124,-460.0,0.00018124,2]
[378737952,1754997036135,-460.0,0.00018124,2]
[378737953,1754997036145,-460.0,0.00018124,2]
[378737954,1754997036155,-460.0,0.00018124,2]
[378737955,1754997036166,-468.03493492,0.00018124,2]
[378737956,1754997036176,-205.31208963,0.00018124,2]
[378737957,1754997036187,-460.0,0.00018124,2]
[378737958,1754997036198,-579.01753639,0.00018124,2]
[378737959,1754997036208,-460.0,0.00018124,2]
[378737960,1754997036219,-461.74242248,0.00018124,2]
[378737961,1754997036231,-377.87718195,0.00018124,2]
[378737962,1754997036242,-581.89297595,0.00018124,2]
[378737963,1754997036253,-460.0,0.00018124,2]
[378737964,1754997036264,-460.0,0.00018124,2]
[378737965,1754997036275,-460.0,0.00018124,2]
[378737966,1754997036286,-460.0,0.00018124,2]
[378737967,1754997036296,-460.0,0.00018124,2]
[378737968,1754997036307,-1116.68258953,0.00018124,2]
[378737969,1754997036318,-330.64939674,0.00018124,2]
[378737970,1754997036331,-460.0,0.00018124,2]
[378737971,1754997036341,-269.67399361,0.00018124,2]
[378737972,1754997036352,-460.0,0.00018124,2]
[378737973,1754997036363,-460.0,0.00018124,2]
[378737974,1754997036373,-460.0,0.00018124,2]
[378737975,1754997036384,-531.2428614,0.00018124,2]
[378737976,1754997036395,-460.0,0.00018124,2]
[378737977,1754997036406,-460.0,0.00018124,2]
[378737978,1754997036417,-157.5,0.00018124,2]
[378737979,1754997036428,-460.0,0.00018124,2]
[378737980,1754997036439,-557.92,0.00018124,2]
[378737981,1754997036449,-460.0,0.00018124,2]
[378737982,1754997036460,-460.0,0.00018124,2]
[378737983,1754997036471,-460.0,0.00018124,2]
[378737984,1754997036482,-460.0,0.00018124,2]
[378737985,1754997036493,-460.0,0.00018124,2]
[378737986,1754997036503,-460.0,0.00018124,2]
[378737987,1754997036514,-572.02,0.00018124,2]
[378737988,1754997036524,-182.03440314,0.00018124,2]
[378737989,1754997036535,-463.29482694,0.00018124,2]
[378737990,1754997036546,-460.0,0.00018124,2]
[378737991,1754997036557,-460.0,0.00018124,2]
[378737992,1754997036567,-463.17241273,0.00018124,2]
[378737993,1754997036578,-460.0,0.00018124,2]
[378737994,1754997036589,-460.0,0.00018124,2]
[378737995,1754997036601,-460.0,0.00018124,2]
[378737996,1754997036612,-498.75,0.00018124,2]
[378737997,1754997036623,-460.0,0.00018124,2]
[378737998,1754997036634,-460.0,0.00018124,2]
[378737999,1754997036644,-461.10152673,0.00018124,2]
[378738000,1754997036655,-460.0,0.00018124,2]
[378738001,1754997036666,-460.0,0.00018124,2]
[378738002,1754997036677,-460.0,0.00018124,2]
[378738003,1754997036687,-460.0,0.00018124,2]
[378738004,1754997036698,-460.0,0.00018124,2]
[378738005,1754997036709,-460.0,0.00018124,2]
[378738006,1754997036719,-460.0,0.00018124,2]
[378738007,1754997036730,-460.0,0.00018124,2]
[378738008,1754997036741,-500.0,0.00018124,2]
[378738009,1754997036752,-500.0,0.00018124,2]
[378738010,1754997036763,-500.0,0.00018124,2]
[378738011,1754997036774,-401.71890274,0.00018124,2]
[378738012,1754997036785,-500.0,0.00018124,2]
[378738013,1754997036796,-464.59360669,0.00018125,2]
[378738014,1754997036807,-500.0,0.00018125,2]
[378738015,1754997036818,-500.0,0.00018125,2]
[378738016,1754997036829,-500.0,0.00018125,2]
[378738017,1754997036839,-500.0,0.00018297,2]
[378738018,1754997036851,-500.0,0.00018298,2]
[378738019,1754997036862,-500.0,0.00018299,2]
[378738020,1754997036873,-500.0,0.00018299,2]
[378738021,1754997036884,-500.0,0.00018299,2]
[378738022,1754997036895,-500.0,0.00018299,2]
[378738023,1754997036905,-500.0,0.00018299,2]
[378738024,1754997036916,-189.20360481,0.00018299,2]
[378738025,1754997036927,-500.0,0.00018373,2]
[378738026,1754997036938,-500.0,0.00018373,2]
[378738027,1754997036948,-500.0,0.00018373,2]
[378738028,1754997036959,-500.0,0.00018373,2]
[378738029,1754997036970,-460.0,0.00018389,2]
[378738030,1754997036981,-460.0,0.00018389,2]
[378738031,1754997036992,-460.0,0.0001839,2]
[378738032,1754997037002,-460.0,0.0001839,2]
[378738033,1754997037013,-482.82,0.0001839,2]
[378738034,1754997037024,-1178.44,0.0001839,2]
[378738035,1754997037035,-460.0,0.0001839,2]
[378738036,1754997037046,-2783.55,0.0001839,2]
[378738037,1754997037057,-564.58,0.0001839,2]
[378738038,1754997037068,-460.0,0.0001839,2]
[378738039,1754997037079,-460.0,0.0001839,2]
[378738040,1754997037089,-460.0,0.0001839,2]
[378738041,1754997037101,-460.0,0.00018391,2]
[378738042,1754997037112,-1733.83,0.00018391,2]
[378738043,1754997037122,-2264.23,0.00018391,2]
[378738044,1754997037133,-460.0,0.00018391,2]
[378738045,1754997037143,-460.0,0.00018391,2]
[378738046,1754997037154,-460.0,0.00018391,2]
[378738047,1754997037164,-1356.4,0.00018391,2]
[378738048,1754997037175,-460.0,0.00018391,2]
[378738049,1754997037186,-3959.62,0.00018391,2]
[378738050,1754997037196,-460.0,0.00018391,2]
[378738051,1754997037207,-547.64,0.00018391,2]
[378738052,1754997037217,-800.67,0.00018391,2]
[378738053,1754997037227,-460.0,0.00018391,2]
[378738054,1754997037238,-460.0,0.00018391,2]
[378738055,1754997037253,-949.7,0.00018391,2]
[378738056,1754997037264,-1121.99,0.00018391,2]
[378738057,1754997037275,-460.0,0.00018391,2]
[378738058,1754997037285,-291.22603619,0.00018391,2]
[378738059,1754997037296,-710.82,0.00018391,2]
[378738060,1754997037306,-639.9,0.00018391,2]
[378738061,1754997037316,-923.38,0.00018391,2]
[378738062,1754997037329,-460.0,0.00018391,2]
[378738063,1754997037572,-460.0,0.00018391,2]
[378738064,1754997037588,-460.0,0.00018391,2]
[378738065,1754997037598,-460.0,0.00018392,2]
[378738066,1754997037608,-460.0,0.00018392,2]
[378738067,1754997037618,-460.0,0.00018392,2]
[378738068,1754997037628,-460.0,0.00018392,2]
[378738069,1754997037637,-583.79,0.00018392,2]
[378738070,1754997037647,-472.03,0.00018392,2]
[378738071,1754997037656,-300.82338762,0.00018392,2]
[378738072,1754997037666,-460.0,0.00018392,2]
[378738073,1754997037676,-460.0,0.00018392,2]
[378738074,1754997037686,-460.0,0.00018392,2]
[378738075,1754997037695,-286.62739854,0.00018392,2]
[378738076,1754997037705,-460.0,0.00018392,2]
[378738077,1754997037714,-460.0,0.00018392,2]
[378738078,1754997037723,-460.0,0.00018392,2]
[378738079,1754997037732,-459.87,0.00018392,2]
[378738080,1754997037742,-460.0,0.00018392,2]
[378738081,1754997037751,-606.38,0.00018392,2]
[378738082,1754997037760,-504.95,0.00018392,2]
[378738083,1754997037769,-460.0,0.00018392,2]
[378738084,1754997037779,-460.0,0.00018392,2]
[378738085,1754997037788,-460.0,0.00018392,2]
[378738086,1754997037798,-460.0,0.00018392,2]
[378738087,1754997037807,-490.1,0.00018392,2]
[378738088,1754997037817,-460.0,0.00018392,2]
[378738089,1754997037826,-460.0,0.00018392,2]
[378738090,1754997037835,-610.05,0.00018392,2]
[378738091,1754997037844,-460.0,0.00018392,2]
[378738092,1754997037854,-460.0,0.00018392,2]
[378738093,1754997037864,-807.82,0.00018392,2]
[378738094,1754997037873,-460.0,0.00018392,2]
[378738095,1754997037882,-460.0,0.00018392,2]
[378738096,1754997037891,-460.0,0.00018392,2]
[378738097,1754997037901,-470.07880782,0.00018392,2]
[378738098,1754997037911,-460.0,0.00018392,2]
[378738099,1754997037920,-460.0,0.00018392,2]
[378738100,1754997037929,-469.0,0.00018392,2]
[378738101,1754997037939,-510.89,0.00018392,2]
[378738103,1754997037948,-853.56,0.00018392,2]
[378738104,1754997037958,-460.0,0.00018392,2]
[378738106,1754997037967,-460.0,0.00018392,2]
[378738107,1754997037976,-460.0,0.00018392,2]
[378738108,1754997037985,-436.26,0.00018392,2]
[378738109,1754997037994,-460.0,0.00018392,2]
[378738110,1754997038003,-460.0,0.00018392,2]
[378738111,1754997038013,-460.0,0.00018392,2]
[378738112,1754997038022,-460.0,0.00018392,2]
[378738114,1754997038032,-513.28676322,0.00018392,2]
[378738115,1754997038041,-460.0,0.00018392,2]
[378738116,1754997038050,-614.51,0.00018392,2]
[378738117,1754997038059,-460.0,0.00018392,2]
[378738118,1754997038069,-460.0,0.00018392,2]
[378738120,1754997038078,-460.0,0.00018392,2]
[378738122,1754997038087,-460.0,0.00018392,2]
[378738124,1754997038097,-462.79101781,0.00018392,2]
[378738126,1754997038106,-460.0,0.00018392,2]
[378738128,1754997038115,-460.0,0.00018392,2]
[378738129,1754997038124,-460.0,0.00018392,2]
[378738132,1754997038135,-460.0,0.00018392,2]
[378738133,1754997038144,-460.0,0.00018392,2]
[378738134,1754997038153,-460.0,0.00018392,2]
[378738135,1754997038163,-1090.97,0.00018392,2]
[378738136,1754997038172,-460.0,0.00018392,2]
[378738137,1754997038182,-460.0,0.00018392,2]
[378738138,1754997038192,-7814.47,0.00018392,2]
[378738139,1754997038201,-609.24,0.00018392,2]
[378738140,1754997038210,-460.0,0.00018392,2]
[378738141,1754997038219,-480.77872443,0.00018392,2]
[378738143,1754997038228,-460.0,0.00018392,2]
[378738144,1754997038237,-460.0,0.00018392,2]
[378738146,1754997038246,-2081.03,0.00018392,2]
[378738147,1754997038255,-460.0,0.00018392,2]
[378738148,1754997038265,-786.2,0.00018392,2]
[378738149,1754997038274,-460.0,0.00018392,2]
[378738151,1754997038283,-2121.94,0.00018392,2]
[378738152,1754997038292,-683.65,0.00018392,2]
[378738154,1754997038302,-2050.44,0.00018392,2]
[378738155,1754997038311,-460.0,0.00018392,2]
[378738156,1754997038320,-460.0,0.00018392,2]
[378738157,1754997038333,-917.42,0.00018392,2]
[378738158,1754997038342,-460.0,0.00018392,2]
[378738159,1754997038352,-460.0,0.00018392,2]
[378738160,1754997038363,-1313.8,0.00018392,2]
[378738161,1754997038372,-460.0,0.00018392,2]
[378738162,1754997038382,-460.0,0.00018392,2]
[378738163,1754997038391,-1201.16,0.00018392,2]
[378738164,1754997038401,-1777.05,0.00018392,2]
[378738165,1754997038411,-460.0,0.00018392,2]
[378738166,1754997038420,-1195.64,0.00018392,2]
[378738167,1754997038430,-460.0,0.00018392,2]
[378738168,1754997038439,-460.0,0.00018392,2]
[378738169,1754997038448,-735.68,0.00018392,2]
[378738170,1754997038457,-1018.84,0.00018392,2]
[378738171,1754997038466,-460.0,0.00018392,2]
[378738172,1754997038475,-460.0,0.00018392,2]
[378738173,1754997038488,-460.0,0.00018392,2]
[378738174,1754997038497,-407.08911212,0.00018392,2]
[378738175,1754997038506,-460.0,0.00018392,2]
[378738176,1754997038516,-1630.68,0.00018394,2]
[378738177,1754997038526,-195.96,0.00018394,2]
[378738178,1754997038536,-2042.81,0.00018394,2]
[378738179,1754997038545,-460.0,0.00018394,2]
[378738180,1754997038554,-500.0,0.00018394,2]
[378738181,1754997038564,-704.81,0.00018395,2]
[378738183,1754997038574,-500.0,0.00018395,2]
[378738184,1754997038583,-500.0,0.00018396,2]
[378738185,1754997038592,-500.0,0.00018396,2]
[378738187,1754997038603,-208.21759135,0.00018396,2]
[378738188,1754997038613,-460.0,0.00018397,2]
[378738190,1754997038621,-460.0,0.00018397,2]
[378738191,1754997038631,-460.0,0.00018397,2]
[378738192,1754997038641,-586.5,0.00018397,2]
[378738193,1754997038651,-460.0,0.00018397,2]
[378738194,1754997038661,-460.0,0.00018397,2]
[378738195,1754997038671,-460.0,0.00018397,2]
[378738196,1754997038680,-460.0,0.00018397,2]
[378738197,1754997038691,-577.31,0.00018397,2]
[378738198,1754997038701,-902.85,0.00018397,2]
[378738199,1754997038722,-460.0,0.00018397,2]
[378738200,1754997038732,-460.0,0.00018397,2]
[378738201,1754997038741,-460.0,0.00018397,2]
[378738202,1754997038751,-460.0,0.00018397,2]
[378738203,1754997038760,-460.0,0.00018397,2]
[378738204,1754997038772,-460.0,0.00018397,2]
[378738205,1754997038781,-460.0,0.00018397,2]
[378738206,1754997038791,-467.90189732,0.00018397,2]
[378738207,1754997038801,-460.0,0.00018397,2]
[378738208,1754997038810,-1212.71,0.00018397,2]
[378738209,1754997038820,-343.01574983,0.00018397,2]
[378738210,1754997038829,-460.0,0.00018397,2]
[378738211,1754997038839,-460.0,0.00018397,2]
[378738212,1754997038849,-460.0,0.00018397,2]
[378738213,1754997038858,-500.0,0.00018397,2]
[378738214,1754997038867,-460.0,0.00018398,2]
[378738215,1754997038877,-460.0,0.00018398,2]
[378738216,1754997038887,-460.0,0.00018398,2]
[378738217,1754997038896,-460.0,0.00018398,2]
[378738218,1754997038906,-460.0,0.00018398,2]
[378738219,1754997038916,-460.0,0.00018398,2]
[378738220,1754997038925,-460.0,0.00018398,2]
[378738221,1754997038934,-460.0,0.00018398,2]
[378738222,1754997038944,-460.0,0.00018398,2]
[378738223,1754997038953,-460.0,0.00018398,2]
[378738224,1754997038962,-460.0,0.00018398,2]
[378738225,1754997038972,-460.0,0.00018398,2]
[378738226,1754997038981,-460.0,0.00018398,2]
[378738227,1754997038990,-572.02,0.00018398,2]
[378738228,1754997039000,-460.0,0.00018398,2]